bitfinex-derivatives/quotes_BTCF0:USTF0_20250902
["timestamp","ask_amount","ask_price","bid_price","bid_amount"]
[1756801898131,1.17236,110340.0,110330.0,0.15024977]
[1756801898434,0.34,110340.0,110330.0,0.15024977]
[1756801898620,1.17236,110340.0,110330.0,0.15024977]
[1756801899327,1.17036,110340.0,110330.0,0.15024977]
[1756801899930,1.17136,110340.0,110330.0,0.15024977]
[1756801901733,0.85336,110340.0,110330.0,0.15024977]
[1756801901935,1.48619906,110340.0,110330.0,0.15024977]
[1756801902138,0.83336,110340.0,110330.0,0.15024977]
[1756801902335,0.85336,110340.0,110330.0,0.15024977]
[1756801902634,1.17336,110340.0,110330.0,0.15024977]
[1756801903435,1.17336,110340.0,110330.0,0.08509]
[1756801904337,1.46619906,110340.0,110330.0,0.08509]
[1756801906341,1.46619906,110340.0,110330.0,0.15024977]
[1756801908244,1.46619906,110340.0,110330.0,0.11332977]
[1756801908536,1.46619906,110340.0,110330.0,0.06515977]
[1756801909031,1.46619906,110340.0,110330.0,0.11332977]
[1756801909740,1.46619906,110340.0,110330.0,0.15024977]
[1756801910542,1.46619906,110340.0,110330.0,0.11332977]
[1756801911132,1.46619906,110340.0,110330.0,0.15024977]
[1756801911351,1.17336,110340.0,110330.0,0.15024977]
[1756801911539,1.17336,110340.0,110330.0,0.44308883]
[1756801911740,1.17336,110340.0,110330.0,0.37792906]
[1756801913942,0.341,110340.0,110330.0,0.37792906]
[1756801914142,1.17336,110340.0,110330.0,0.37792906]
[1756801914941,0.341,110340.0,110330.0,0.37792906]
[1756801915142,1.17332,110340.0,110330.0,0.37792906]
[1756801916535,1.17332,110340.0,110330.0,0.44308883]
[1756801918744,1.17332,110340.0,110330.0,0.11332977]
[1756801918935,1.17332,110340.0,110320.0,0.46126858]
[1756801919135,1.46615906,110340.0,110320.0,0.46126858]
[1756801919945,1.17332,110340.0,110330.0,0.03692]
[1756801920146,1.17232,110340.0,110330.0,0.08509]
[1756801921541,1.46515906,110340.0,110320.0,0.46126858]
[1756801921847,1.48924796,110340.0,110330.0,0.06515977]
[1756801922840,2.03108702,110340.0,110330.0,0.06515977]
[1756801923038,2.03108702,110340.0,110320.0,0.06515977]
[1756801923238,0.29283906,110330.0,110320.0,0.06515977]
[1756801923440,0.66283906,110330.0,110320.0,0.06515977]
[1756801924543,0.66283906,110330.0,110310.0,0.11332977]
[1756801924742,1.12511906,110320.0,110310.0,0.11332977]
[1756801924937,1.44511906,110320.0,110310.0,0.15024977]
[1756801926138,1.15328,110320.0,110310.0,0.15024977]
[1756801926354,1.44611906,110320.0,110310.0,0.15024977]
[1756801926553,1.15328,110320.0,110310.0,0.15024977]
[1756801926749,1.44611906,110320.0,110310.0,0.15024977]
[1756801927949,1.44711906,110320.0,110310.0,0.15024977]
[1756801928656,0.322,110320.0,110310.0,0.15024977]
[1756801928845,0.87448,110320.0,110310.0,0.44308883]
[1756801929246,0.322,110320.0,110310.0,0.44308883]
[1756801929446,0.322,110320.0,110310.0,0.44327686]
[1756801930353,0.322,110320.0,110310.0,0.15024977]
[1756801930553,0.322,110320.0,110310.0,0.44327686]
[1756801933950,0.002,110320.0,110310.0,0.98630395]
[1756801934151,0.002,110320.0,110310.0,0.92114418]
[1756801934353,0.002,110320.0,110310.0,1.01178918]
[1756801934753,0.002,110320.0,110310.0,1.12551389]
[1756801935546,0.001,110320.0,110310.0,1.12551389]
[1756801936555,0.0200889,110340.0,110330.0,0.04791]
[1756801936856,0.3500889,110340.0,110330.0,0.44084117]
[1756801937252,0.64311599,110340.0,110330.0,0.14781408]
[1756801937556,1.18614308,110340.0,110330.0,0.06513408]
[1756801937857,1.18814308,110340.0,110330.0,0.06513408]
[1756801938152,1.19014308,110340.0,110330.0,0.06513408]
[1756801938751,1.48317017,110340.0,110320.0,0.06513408]
[1756801938952,1.12526709,110330.0,110320.0,0.06513408]
[1756801939254,1.48526709,110330.0,110320.0,0.06513408]
[1756801939654,0.65302709,110330.0,110320.0,0.06513408]
[1756801939954,1.48526709,110330.0,110320.0,0.08958408]
[1756801940955,1.19424,110330.0,110320.0,0.08958408]
[1756801941155,1.48726709,110330.0,110320.0,0.08958408]
[1756801941362,1.48826709,110330.0,110320.0,0.08958408]
[1756801941657,1.49226709,110330.0,110320.0,0.02445]
[1756801942865,2.03529418,110330.0,110310.0,0.08354099]
[1756801943057,0.58605418,110320.0,110310.0,0.01840691]
[1756801943257,0.92605418,110320.0,110310.0,0.01840691]
[1756801943458,1.17605418,110320.0,110310.0,0.01840691]
[1756801944664,1.17805418,110320.0,110310.0,0.01840691]
[1756801944867,2.01025418,110320.0,110310.0,0.04285691]
[1756801945060,2.00825418,110320.0,110310.0,0.04285691]
[1756801945261,2.01225418,110320.0,110310.0,0.04285691]
[1756801945669,2.01425418,110320.0,110310.0,0.04285691]
[1756801946572,2.01525418,110320.0,110310.0,0.04285691]
[1756801948074,2.01525418,110320.0,110310.0,0.01840691]
[1756801949374,2.01525418,110320.0,110310.0,0.04285691]
[1756801950573,1.18305418,110320.0,110310.0,0.06631691]
[1756801950773,2.01529418,110320.0,110310.0,0.06631691]
[1756801951173,2.01529418,110320.0,110310.0,0.01840691]
[1756801952065,2.01529418,110320.0,110310.0,0.04285691]
[1756801952664,2.01529418,110320.0,110310.0,0.06631691]
[1756801954674,1.18305418,110320.0,110310.0,0.10108691]
[1756801954874,2.01525418,110320.0,110310.0,0.10108691]
[1756801955267,1.4292,110320.0,110310.0,0.10108691]
[1756801955468,2.01525418,110320.0,110310.0,0.10108691]
[1756801955877,2.01425418,110320.0,110310.0,0.10108691]
[1756801956574,2.01225418,110320.0,110310.0,0.10108691]
[1756801956775,2.01525418,110320.0,110310.0,0.10108691]
[1756801957074,2.01525418,110320.0,110310.0,0.06631691]
[1756801957265,2.01525418,110320.0,110310.0,0.06366691]
[1756801957470,2.01525418,110320.0,110310.0,0.10096691]
[1756801957775,2.01525418,110320.0,110310.0,0.06366691]
[1756801960279,2.01525418,110320.0,110310.0,0.01840691]
[1756801960874,2.01525418,110320.0,110310.0,0.10096691]
[1756801961582,2.01525418,110320.0,110310.0,0.06366691]
[1756801962380,2.01525418,110320.0,110310.0,0.01840691]
[1756801962580,1.4292,110320.0,110310.0,0.01840691]
[1756801962781,2.01525418,110320.0,110310.0,0.01840691]
[1756801964186,2.01525418,110320.0,110310.0,0.04111691]
[1756801964376,2.01525418,110320.0,110310.0,0.06366691]
[1756801965483,2.01525418,110320.0,110310.0,0.04111691]
[1756801967082,2.01525418,110320.0,110310.0,0.01840691]
[1756801967287,1.76525418,110320.0,110290.0,0.14769408]
[1756801967489,0.29302709,110300.0,110290.0,0.14769408]
[1756801967683,1.46518709,110300.0,110290.0,0.44072117]
[1756801968189,1.46518709,110300.0,110290.0,0.14769408]
[1756801968787,1.75821418,110300.0,110290.0,0.14769408]
[1756801969092,1.75821418,110300.0,110290.0,0.04526]
[1756801969586,1.75921418,110300.0,110290.0,0.04526]
[1756801969789,1.75921418,110300.0,110290.0,0.08256]
[1756801970088,1.46618709,110300.0,110290.0,0.08256]
[1756801970676,1.46518709,110300.0,110290.0,0.37558709]
[1756801970990,1.46818709,110300.0,110290.0,0.37558709]
[1756801971181,1.46818709,110300.0,110290.0,0.08256]
[1756801971584,1.46718709,110300.0,110290.0,0.08256]
[1756801971786,1.46918709,110300.0,110290.0,0.14769408]
[1756801972183,1.46918709,110300.0,110290.0,0.44072117]
[1756801972580,1.46918709,110300.0,110290.0,0.14769408]
[1756801972886,1.46918709,110300.0,110290.0,0.44072117]
[1756801973287,1.46918709,110300.0,110290.0,0.14769408]
[1756801974993,1.76221418,110300.0,110290.0,0.14769408]
[1756801975196,1.76221418,110300.0,110290.0,0.11039408]
[1756801975394,1.17616,110300.0,110290.0,0.14769408]
[1756801975600,1.76221418,110300.0,110290.0,0.14769408]
[1756801977801,2.30524127,110300.0,110280.0,0.06513408]
[1756801977999,0.58605418,110290.0,110270.0,0.14769408]
[1756801978200,1.41821418,110280.0,110270.0,0.14769408]
[1756801978395,1.74821418,110280.0,110270.0,0.14769408]
[1756801979305,1.74821418,110280.0,110270.0,0.08784408]
[1756801979711,1.74821418,110280.0,110270.0,0.06513408]
[1756801980213,1.76820077,110280.0,110260.0,0.16631376]
[1756801980406,0.29302709,110270.0,110260.0,0.16631376]
[1756801980604,0.62302709,110270.0,110260.0,0.16631376]
[1756801981405,0.62302709,110270.0,110260.0,0.16731376]
[1756801981904,0.62302709,110270.0,110260.0,0.41731376]
[1756801982108,0.62302709,110270.0,110260.0,0.41831376]
[1756801982310,0.33,110270.0,110260.0,0.35417968]
[1756801982610,0.62302709,110270.0,110260.0,0.35417968]
[1756801983006,0.62302709,110270.0,110260.0,0.003]
[1756801983209,1.16605418,110270.0,110260.0,0.003]
[1756801984312,1.16605418,110270.0,110260.0,0.002]
[1756801984911,1.16605418,110270.0,110240.0,0.08256]
[1756801985113,0.29302709,110250.0,110240.0,0.08256]
[1756801985411,0.60302709,110250.0,110240.0,0.08256]
[1756801986014,0.60302709,110250.0,110240.0,0.08556]
[1756801986400,0.31,110250.0,110240.0,0.08556]
[1756801986600,0.60302709,110250.0,110240.0,0.08556]
[1756801986804,0.67417462,110250.0,110240.0,0.08556]
[1756801987414,0.67417462,110250.0,110240.0,0.08756]
[1756801988117,0.67417462,110250.0,110240.0,0.08556]
[1756801988319,0.67417462,110250.0,110240.0,0.08756]
[1756801989415,1.50645462,110250.0,110240.0,0.08756]
[1756801991512,0.67461396,110250.0,110240.0,0.08756]
[1756801991711,1.50689396,110250.0,110240.0,0.08756]
[1756801991912,0.67461396,110250.0,110240.0,0.08756]
[1756801992211,0.07114753,110250.0,110240.0,0.08756]
[1756801992402,0.11756,110260.0,110250.0,0.09546]
[1756801992802,0.90862643,110270.0,110250.0,0.09546]
[1756801993008,1.21862643,110270.0,110250.0,0.09546]
[1756801993307,0.29346643,110260.0,110250.0,0.09546]
[1756801993503,0.61346643,110260.0,110250.0,0.09646]
[1756801993708,0.61346643,110260.0,110250.0,0.09846]
[1756801994118,1.44574643,110260.0,110250.0,0.09846]
[1756801994816,1.12574643,110260.0,110250.0,0.09846]
[1756801995018,0.83228,110260.0,110250.0,0.09846]
[1756801995214,0.83228,110260.0,110250.0,0.09646]
[1756801995411,0.29346643,110270.0,110250.0,0.35770643]
[1756801995619,1.47574643,110270.0,110260.0,0.08087]
[1756801997019,1.47574643,110270.0,110260.0,0.04665]
[1756801998020,1.47574643,110270.0,110260.0,0.02337]
[1756801998516,1.47574643,110270.0,110250.0,0.03422]
[1756801998712,0.29346643,110260.0,110240.0,0.09945043]
[1756801998912,1.12574643,110250.0,110240.0,0.06523043]
[1756801999112,1.49574643,110250.0,110240.0,0.01858043]
[1756801999313,1.49574643,110250.0,110240.0,0.04195043]
[1756801999616,1.49574643,110250.0,110240.0,0.06523043]
[1756801999819,1.49574643,110250.0,110240.0,0.07023043]
[1756802001218,1.49574643,110250.0,110240.0,0.005]
[1756802002015,1.49574643,110250.0,110240.0,0.02837]
[1756802002625,1.49574643,110250.0,110240.0,0.02337]
[1756802003423,1.53930993,110250.0,110240.0,0.04665]
[1756802003812,1.53930993,110250.0,110220.0,0.45073039]
[1756802004016,1.53930993,110250.0,110230.0,0.08087]
[1756802005622,1.53930993,110250.0,110230.0,0.08287]
[1756802006226,1.53930993,110250.0,110230.0,0.08387]
[1756802007126,0.29346643,110240.0,110230.0,0.08387]
[1756802007331,0.33,110240.0,110230.0,0.08387]
[1756802007835,0.62346643,110240.0,110230.0,0.04965]
[1756802008022,0.62346643,110240.0,110230.0,0.003]
[1756802009331,0.62346643,110240.0,110230.0,0.04965]
[1756802009631,0.92581306,110250.0,110230.0,0.08387]
[1756802009821,1.5601706,110250.0,110230.0,0.08387]
[1756802010626,1.5601706,110250.0,110240.0,0.08087]
[1756802010824,1.5601706,110250.0,110230.0,0.02637]
[1756802011124,0.29346643,110240.0,110230.0,0.02637]
[1756802011434,0.62346643,110240.0,110230.0,0.003]
[1756802011623,0.62346643,110240.0,110230.0,0.02637]
[1756802012116,0.29346643,110240.0,110230.0,0.02637]
[1756802012325,0.62346643,110240.0,110230.0,0.02537]
[1756802013228,0.61346643,110240.0,110230.0,0.02637]
[1756802013529,0.64346643,110240.0,110230.0,0.003]
[1756802015327,0.64346643,110240.0,110230.0,0.02637]
[1756802015633,0.64346643,110240.0,110230.0,0.003]
[1756802015817,0.64346643,110240.0,110230.0,0.02637]
[1756802016722,0.64346643,110240.0,110230.0,0.06813408]
[1756802016922,0.64346643,110240.0,110230.0,0.003]
[1756802017625,0.64346643,110240.0,110230.0,0.02551]
[1756802017833,1.47574643,110240.0,110230.0,0.04985]
[1756802019827,1.47574643,110240.0,110230.0,0.02551]
[1756802020028,1.47574643,110240.0,110230.0,0.003]
[1756802020429,1.18228,110240.0,110230.0,0.04985]
[1756802020730,1.18228,110240.0,110230.0,0.08579]
[1756802020731,1.44574643,110240.0,110230.0,0.08579]
[1756802021629,1.44574643,110240.0,110230.0,0.04985]
[1756802022132,1.44574643,110240.0,110230.0,0.08579]
[1756802023027,1.44574643,110240.0,110230.0,0.04985]
[1756802024835,1.44574643,110240.0,110230.0,0.08579]
[1756802025336,1.44574643,110240.0,110230.0,0.04985]
[1756802026137,0.83228,110240.0,110230.0,0.08579]
[1756802026336,1.47574643,110240.0,110230.0,0.08579]
[1756802026540,1.47574643,110240.0,110230.0,0.04985]
[1756802026731,1.45574643,110240.0,110230.0,0.04985]
[1756802027128,0.83228,110240.0,110230.0,0.003]
[1756802027330,1.44574643,110240.0,110230.0,0.02551]
[1756802027740,1.44574643,110240.0,110230.0,0.003]
[1756802029434,1.69574643,110240.0,110230.0,0.003]
[1756802029639,1.69574643,110240.0,110220.0,0.08334662]
[1756802029934,0.29346643,110230.0,110220.0,0.08334662]
[1756802030134,0.64346643,110230.0,110220.0,0.08334662]
[1756802030329,0.64346643,110230.0,110220.0,0.01821254]
[1756802031036,0.64346643,110230.0,110220.0,0.02021254]
[1756802031335,0.63346643,110230.0,110220.0,0.002]
[1756802031640,0.63346643,110230.0,110220.0,0.001]
[1756802031838,0.63346643,110230.0,110220.0,0.004]
[1756802032340,0.63346643,110230.0,110220.0,0.001]
[1756802032546,0.63346643,110230.0,110220.0,0.003]
[1756802033235,1.47574643,110230.0,110220.0,0.003]
[1756802033737,1.40574643,110230.0,110220.0,0.003]
[1756802035338,0.57346643,110230.0,110220.0,0.04985]
[1756802035544,0.83228,110230.0,110220.0,0.08579]
[1756802035751,1.46574643,110230.0,110220.0,0.08579]
[1756802036237,0.63346643,110230.0,110220.0,0.04985]
[1756802036434,1.46574643,110230.0,110220.0,0.04985]
[1756802038534,1.46574643,110230.0,110220.0,0.06814836]
[1756802040241,0.63346643,110230.0,110220.0,0.06814836]
[1756802040438,1.46574643,110230.0,110220.0,0.06814836]
[1756802040640,1.46570643,110230.0,110220.0,0.06814836]
[1756802040841,1.46570643,110230.0,110220.0,0.10408836]
[1756802041036,1.12570643,110230.0,110220.0,0.10408836]
[1756802041236,1.12570643,110230.0,110220.0,0.06814836]
[1756802041542,1.47570643,110230.0,110220.0,0.06814836]
[1756802044245,1.46570643,110230.0,110220.0,0.04380836]
[1756802044446,1.46570643,110230.0,110220.0,0.06814836]
[1756802045550,0.29346643,110230.0,110220.0,0.06814836]
[1756802045749,1.12570643,110230.0,110220.0,0.06814836]
[1756802046648,0.29346643,110230.0,110220.0,0.06814836]
[1756802046846,0.91422643,110230.0,110220.0,0.06814836]
[1756802047350,0.8322,110240.0,110220.0,0.61161479]
[1756802047540,0.8322,110240.0,110230.0,0.08299]
[1756802047850,1.2122,110240.0,110230.0,0.08299]
[1756802048233,1.50566643,110240.0,110230.0,0.08299]
[1756802048845,1.45566643,110240.0,110230.0,0.04786]
[1756802049045,1.45566643,110240.0,110220.0,0.16742244]
[1756802049349,1.45566643,110240.0,110220.0,0.16642244]
[1756802049350,0.29346643,110230.0,110220.0,0.16642244]
[1756802050046,0.65346643,110230.0,110220.0,0.38129244]
[1756802050358,0.65346643,110230.0,110220.0,0.35637244]
[1756802050850,0.65346643,110230.0,110220.0,0.08343244]
[1756802051749,0.65346643,110230.0,110220.0,0.01829836]
[1756802051950,0.65346643,110230.0,110220.0,0.01929836]
[1756802052454,0.65346643,110230.0,110220.0,0.01829836]
[1756802052754,0.65346643,110230.0,110220.0,0.01929836]
[1756802052954,0.94693286,110230.0,110220.0,0.001]
[1756802053253,0.67410802,110230.0,110220.0,0.001]
[1756802053453,0.96799739,110230.0,110220.0,0.001]
[1756802054448,1.21899739,110230.0,110220.0,0.001]
[1756802055053,1.22099739,110230.0,110200.0,0.18034947]
[1756802055240,0.2936779,110210.0,110200.0,0.18034947]
[1756802056141,0.2936779,110210.0,110200.0,0.18134947]
[1756802056753,0.2936779,110210.0,110200.0,0.13265947]
[1756802056948,0.2936779,110210.0,110200.0,0.06752539]
[1756802057349,0.6236779,110210.0,110200.0,0.06752539]
[1756802057848,0.2936779,110210.0,110200.0,0.06752539]
[1756802059751,0.2936779,110210.0,110200.0,0.10265539]
[1756802060654,0.2936779,110210.0,110200.0,0.41107329]
[1756802061746,0.2936779,110210.0,110200.0,0.47620737]
[1756802063549,0.2936779,110220.0,110200.0,0.47620737]
[1756802063754,0.2936779,110210.0,110200.0,0.47620737]
[1756802066748,0.2936779,110210.0,110200.0,0.41107329]
[1756802067456,0.02055019,110230.0,110220.0,0.04786]
[1756802067651,0.02055019,110230.0,110220.0,0.3766679]
[1756802067652,0.13055019,110230.0,110220.0,0.3766679]
[1756802067851,0.13055019,110230.0,110220.0,0.6703458]
[1756802068052,0.13055019,110230.0,110220.0,0.73547988]
[1756802068253,0.13055019,110230.0,110220.0,0.6703458]
[1756802068449,0.13055019,110230.0,110220.0,0.3766679]
[1756802068648,0.42422809,110230.0,110220.0,0.3766679]
[1756802068846,0.42422809,110230.0,110220.0,0.08299]
[1756802069053,0.42722809,110230.0,110220.0,0.3766679]
[1756802069558,0.42722809,110230.0,110220.0,0.08299]
[1756802069760,0.42722809,110230.0,110220.0,0.3766679]
[1756802070561,0.62722809,110230.0,110220.0,0.3766679]
[1756802070753,0.62722809,110230.0,110220.0,0.08299]
[1756802071351,0.65722809,110230.0,110220.0,0.08299]
[1756802072054,1.20090599,110230.0,110210.0,0.04786]
[1756802072355,0.5873558,110220.0,110210.0,0.04786]
[1756802072659,1.7494358,110220.0,110210.0,0.08299]
[1756802073850,1.7504358,110220.0,110210.0,0.04786]
[1756802074759,1.7504358,110220.0,110210.0,0.08299]
[1756802075362,1.7514358,110220.0,110210.0,0.04786]
[1756802075561,2.0014358,110220.0,110200.0,0.11639539]
[1756802075763,0.2936779,110210.0,110200.0,0.10165539]
[1756802076653,0.2936779,110210.0,110200.0,0.08299]
[1756802077261,0.2936779,110210.0,110200.0,0.08399]
[1756802078664,0.2936779,110210.0,110200.0,0.09787]
[1756802079166,0.2936779,110210.0,110200.0,0.16300408]
[1756802080866,0.8523121,110220.0,110200.0,0.16300408]
[1756802081066,0.2936779,110210.0,110200.0,0.16300408]
[1756802082758,0.2936779,110210.0,110200.0,0.45668198]
[1756802084064,0.67207019,110230.0,110220.0,0.08331]
[1756802084261,1.06574809,110230.0,110220.0,0.08331]
[1756802084761,1.06574809,110230.0,110220.0,0.04789]
[1756802084967,1.32574809,110230.0,110210.0,0.08331]
[1756802085271,0.2936779,110220.0,110210.0,0.08331]
[1756802086866,0.2946779,110220.0,110210.0,0.08331]
[1756802087673,0.2956779,110220.0,110210.0,0.08331]
[1756802088668,0.5893558,110220.0,110210.0,0.04789]
[1756802088873,1.4730337,110220.0,110200.0,0.11302408]
[1756802089072,0.5873558,110210.0,110200.0,0.04789]
[1756802089272,1.7893158,110210.0,110200.0,0.04789]
[1756802089462,1.4193158,110210.0,110200.0,0.04789]
[1756802090374,1.4193158,110210.0,110200.0,0.04889]
[1756802091771,1.44040015,110210.0,110200.0,0.04889]
[1756802091962,1.14672225,110210.0,110200.0,0.04889]
[1756802092567,2.07068383,110210.0,110200.0,0.001]
[1756802093662,2.07168383,110210.0,110200.0,0.001]
[1756802094073,2.07364383,110210.0,110190.0,0.05983]
[1756802094270,0.5873558,110200.0,110190.0,0.08331]
[1756802094465,0.60844015,110200.0,110190.0,0.08331]
[1756802096778,0.61044015,110200.0,110190.0,0.08331]
[1756802099165,0.92044015,110200.0,110190.0,0.08331]
[1756802099579,0.83392,110200.0,110190.0,0.6269879]
[1756802099773,0.2956779,110200.0,110190.0,0.6269879]
[1756802102482,0.5893558,110200.0,110190.0,0.33331]
[1756802106075,0.5893558,110200.0,110190.0,0.6269879]
[1756802108193,0.2956779,110200.0,110190.0,0.6269879]
[1756802108584,0.5893558,110200.0,110190.0,0.6269879]
[1756802108880,0.002,110200.0,110190.0,0.6269879]
[1756802109083,0.5893558,110200.0,110190.0,0.6269879]
[1756802109283,0.5893558,110200.0,110190.0,0.33331]
[1756802115491,0.29573559,110200.0,110190.0,0.33331]
[1756802116089,0.002,110200.0,110190.0,0.33331]
[1756802116394,0.29573559,110200.0,110190.0,0.33331]
[1756802118893,0.002,110200.0,110190.0,0.33331]
[1756802119096,0.29573559,110200.0,110190.0,0.33331]
[1756802121196,0.002,110200.0,110190.0,0.33331]
[1756802121398,0.29573559,110200.0,110190.0,0.33331]
[1756802122199,0.31657634,110200.0,110190.0,0.33331]
[1756802124903,0.69657634,110200.0,110190.0,0.33331]
[1756802125204,0.31657634,110200.0,110190.0,0.33331]
[1756802125401,0.69657634,110200.0,110190.0,0.33331]
[1756802125997,0.31657634,110200.0,110190.0,0.33331]
[1756802126901,0.66657634,110200.0,110190.0,0.08331]
[1756802127096,0.31657634,110200.0,110190.0,0.08331]
[1756802128103,0.69657634,110200.0,110190.0,0.08331]
[1756802129100,0.69657634,110200.0,110190.0,0.04789]
[1756802129303,0.31657634,110200.0,110190.0,0.04789]
[1756802129802,0.31657634,110200.0,110190.0,0.08333]
[1756802130598,0.02284075,110200.0,110190.0,0.08333]
[1756802130906,0.02284075,110200.0,110190.0,0.39555189]
[1756802131402,0.02284075,110200.0,110190.0,0.1018163]
[1756802131904,0.02284075,110200.0,110190.0,0.04789]
[1756802131905,0.88657634,110200.0,110190.0,0.04789]
[1756802132105,0.88657634,110200.0,110180.0,0.08405]
[1756802132405,0.29373559,110190.0,110180.0,0.08405]
[1756802132604,0.31481503,110190.0,110180.0,0.08405]
[1756802133501,0.31481503,110190.0,110180.0,0.08505]
[1756802133708,0.38598691,110190.0,110180.0,0.08505]
[1756802138804,0.02028368,110210.0,110200.0,0.0989]
[1756802139011,0.12,110210.0,110200.0,0.39263559]
[1756802139204,0.14108255,110210.0,110200.0,0.39263559]
[1756802139709,0.14108255,110210.0,110200.0,0.0989]
[1756802139910,0.001,110210.0,110200.0,0.68874223]
[1756802140108,0.001,110210.0,110200.0,0.72591223]
[1756802140311,0.003,110210.0,110200.0,0.72591223]
[1756802141313,0.003,110210.0,110200.0,0.66077815]
[1756802143208,0.003,110210.0,110200.0,1.49217815]
[1756802144002,0.003,110210.0,110200.0,1.58291265]
[1756802144403,0.003,110210.0,110200.0,1.93291265]
[1756802144711,0.003,110210.0,110200.0,1.84217815]
[1756802145010,0.002,110210.0,110200.0,1.84217815]
[1756802145809,0.02055019,110230.0,110200.0,1.57496815]
[1756802146000,0.04134439,110230.0,110220.0,0.08457]
[1756802146404,0.04134439,110230.0,110220.0,0.37830559]
[1756802146705,0.02055019,110230.0,110220.0,0.37830559]
[1756802147406,0.02255019,110230.0,110220.0,0.37830559]
[1756802147608,0.02255019,110230.0,110220.0,1.20958559]
[1756802149016,0.02155019,110230.0,110220.0,1.20958559]
[1756802149410,0.02255019,110230.0,110220.0,1.20958559]
[1756802150810,0.02255019,110230.0,110220.0,0.91585]
[1756802151011,0.02255019,110230.0,110220.0,1.20958559]
[1756802151918,0.02255019,110230.0,110220.0,0.37830559]
[1756802156419,0.02255019,110230.0,110220.0,0.08457]
[1756802156620,0.02255019,110230.0,110220.0,0.37830559]
[1756802157318,0.02255019,110230.0,110220.0,0.08457]
[1756802157624,0.02255019,110230.0,110220.0,0.37830559]
[1756802158420,0.92628578,110230.0,110220.0,0.08457]
[1756802158626,0.92628578,110230.0,110210.0,0.30287]
[1756802158824,0.29373559,110220.0,110210.0,0.35027]
[1756802159124,0.56628578,110230.0,110220.0,0.08457]
[1756802159324,0.62628578,110230.0,110220.0,0.08457]
[1756802159725,0.62528578,110230.0,110220.0,0.08457]
[1756802160026,0.62428578,110230.0,110220.0,0.08457]
[1756802161427,0.62528578,110230.0,110220.0,0.08457]
[1756802161818,0.62528578,110230.0,110220.0,0.0474]
[1756802162119,0.62428578,110230.0,110220.0,0.02451]
[1756802162321,0.62428578,110230.0,110210.0,0.35027]
[1756802162322,0.62728578,110230.0,110210.0,0.35027]
[1756802162522,0.29373559,110220.0,110210.0,0.35027]
[1756802162727,0.60373559,110220.0,110210.0,0.35027]
[1756802162923,0.60373559,110220.0,110210.0,0.08457]
[1756802163128,0.02555019,110230.0,110210.0,0.08457]
[1756802163318,0.67986543,110230.0,110220.0,0.03717]
[1756802163521,0.67886543,110230.0,110220.0,0.08457]
[1756802164032,0.38512984,110230.0,110220.0,0.08457]
[1756802164329,0.65886543,110230.0,110220.0,0.08457]
[1756802164530,0.65786543,110230.0,110220.0,0.08457]
[1756802165327,0.65886543,110230.0,110220.0,0.08457]
[1756802165532,0.65686543,110230.0,110220.0,0.08457]
[1756802166221,0.36612984,110230.0,110220.0,0.08457]
[1756802166420,0.65986543,110230.0,110220.0,0.08457]
[1756802171529,0.36612984,110230.0,110220.0,0.08457]
[1756802172834,1.19704984,110230.0,110220.0,0.08457]
[1756802174143,1.19700984,110230.0,110220.0,0.08457]
[1756802174343,0.16612984,110230.0,110220.0,0.37830559]
[1756802174641,0.14555019,110230.0,110220.0,0.37830559]
[1756802175441,0.14555019,110230.0,110220.0,0.37810311]
[1756802175642,0.14555019,110230.0,110220.0,0.67163622]
[1756802176540,0.14555019,110230.0,110220.0,0.37810311]
[1756802176837,0.14555019,110230.0,110220.0,0.08457]
[1756802177037,0.71950258,110230.0,110220.0,0.08457]
[1756802177235,0.6990833,110230.0,110220.0,0.08457]
[1756802177437,0.71950317,110230.0,110220.0,0.08457]
[1756802177636,0.6990833,110230.0,110220.0,0.08457]
[1756802177842,0.71950328,110230.0,110220.0,0.08457]
[1756802178239,0.69895309,110230.0,110220.0,0.08457]
[1756802178639,0.69895309,110230.0,110220.0,0.37810311]
[1756802179537,0.7078628,110230.0,110220.0,0.37810311]
[1756802180745,0.3278628,110230.0,110220.0,0.37810311]
[1756802180949,0.6678628,110230.0,110220.0,0.37810311]
[1756802183652,0.6678628,110230.0,110220.0,0.08457]
[1756802186157,0.68770582,110230.0,110220.0,0.08457]
[1756802186342,0.68770582,110230.0,110220.0,0.02451]
[1756802186541,0.68770582,110230.0,110210.0,0.39347925]
[1756802186745,0.29353311,110220.0,110210.0,0.39347925]
[1756802186959,0.64353311,110220.0,110210.0,0.39347925]
[1756802187160,0.65353311,110220.0,110210.0,0.39347925]
[1756802187546,0.36,110220.0,110210.0,0.39347925]
[1756802188050,0.362,110220.0,110210.0,0.39347925]
[1756802188653,0.002,110220.0,110210.0,0.39347925]
[1756802188957,0.002,110220.0,110210.0,0.93701236]
[1756802189563,0.002,110220.0,110210.0,0.64347925]
[1756802190263,0.003,110220.0,110210.0,0.34994614]
[1756802190554,0.003,110220.0,110210.0,0.64347925]
[1756802191858,0.02368365,110220.0,110210.0,0.64347925]
[1756802199563,0.02368365,110220.0,110210.0,0.93701236]
[1756802200366,0.02368365,110220.0,110210.0,1.76753236]
[1756802200562,0.02368365,110220.0,110210.0,1.47399925]
[1756802201864,0.003,110220.0,110210.0,1.47399925]
[1756802202568,0.003,110220.0,110210.0,1.47395925]
[1756802203268,0.003,110220.0,110210.0,1.53909333]
[1756802204169,0.02025443,110260.0,110250.0,0.09542]
[1756802204361,0.02025443,110260.0,110250.0,1.21943311]
[1756802204362,0.39025443,110260.0,110250.0,1.21943311]
[1756802204561,0.37,110260.0,110250.0,1.52228379]
[1756802204766,0.36379465,110290.0,110250.0,1.82732589]
[1756802204963,0.71452757,110290.0,110280.0,0.37535311]
[1756802205171,0.71452757,110290.0,110280.0,0.66888622]
[1756802205366,0.69379465,110290.0,110280.0,0.66888622]
[1756802205670,0.69379465,110290.0,110280.0,0.37535311]
[1756802206271,0.69379465,110290.0,110280.0,1.20575311]
[1756802206471,0.69379465,110290.0,110280.0,1.49928622]
[1756802206674,0.69579465,110290.0,110280.0,1.49928622]
[1756802206969,0.78085348,110290.0,110280.0,1.49928622]
[1756802207960,0.78085348,110290.0,110280.0,0.66888622]
[1756802208168,0.69779465,110290.0,110280.0,1.49916622]
[1756802208564,0.334,110290.0,110280.0,2.04269933]
[1756802208771,0.004,110290.0,110280.0,2.13336733]
[1756802209674,0.29353311,110330.0,110280.0,2.13336733]
[1756802209872,0.002,110290.0,110280.0,0.46602111]
[1756802210175,0.002,110290.0,110280.0,1.29618111]
[1756802210675,0.001,110290.0,110280.0,1.29618111]